[Event "Early-Titled-Tuesday-Blitz-January-23-2024"]
[Site "Chess.com"]
[Date "2024.01.23"]
[Round "5"]
[White "Shodikulov_Jamshid1990"]
[Black "salomez"]
[Result "0-1"]
[WhiteElo "2473"]
[BlackElo "2306"]
[TimeControl "180+1"]
[EndTime "8:55:11 PST"]
[Termination "salomez won by resignation"]

1. e4 {[%clk 0:02:57]} 1... c5 {[%clk 0:02:59.4]} 2. Nf3 {[%clk 0:02:56.7]} 2...
e6 {[%clk 0:02:59]} 3. c3 {[%clk 0:02:56]} 3... Nf6 {[%clk 0:02:57.6]} 4. Bd3
{[%clk 0:02:53.5]} 4... d5 {[%clk 0:02:56.7]} 5. e5 {[%clk 0:02:53.1]} 5... Nfd7
{[%clk 0:02:57.3]} 6. O-O {[%clk 0:02:53.4]} 6... Nc6 {[%clk 0:02:57.8]} 7. Re1
{[%clk 0:02:53.7]} 7... g5 {[%clk 0:02:57.9]} 8. h3 {[%clk 0:02:39.2]} 8... h5
{[%clk 0:02:56.6]} 9. Bb5 {[%clk 0:02:17.7]} 9... g4 {[%clk 0:02:53.3]} 10. Nh2
{[%clk 0:02:17.1]} 10... gxh3 {[%clk 0:02:44.8]} 11. g3 {[%clk 0:02:15]} 11...
h4 {[%clk 0:02:21]} 12. g4 {[%clk 0:02:14.5]} 12... Qb6 {[%clk 0:02:13.2]} 13.
Bxc6 {[%clk 0:02:12.4]} 13... Qxc6 {[%clk 0:02:12.9]} 14. d4 {[%clk 0:02:11.3]}
14... b6 {[%clk 0:02:08.1]} 15. Nd2 {[%clk 0:01:59.4]} 15... Bb7 {[%clk
0:02:00.5]} 16. Ndf3 {[%clk 0:01:55.3]} 16... O-O-O {[%clk 0:01:59.1]} 17. a4
{[%clk 0:01:49.1]} 17... Be7 {[%clk 0:01:47.5]} 18. a5 {[%clk 0:01:48.4]} 18...
f6 {[%clk 0:01:44.1]} 19. axb6 {[%clk 0:01:48.2]} 19... axb6 {[%clk 0:01:43.9]}
20. exf6 {[%clk 0:01:47.6]} 20... Bxf6 {[%clk 0:01:41.4]} 21. Bf4 {[%clk
0:01:44.7]} 21... Rhg8 {[%clk 0:01:19.9]} 22. Qe2 {[%clk 0:01:43.9]} 22... Rde8
{[%clk 0:01:15.8]} 23. b4 {[%clk 0:01:28.5]} 23... c4 {[%clk 0:01:08.9]} 24. b5
{[%clk 0:01:27.1]} 24... Qxb5 {[%clk 0:01:06.4]} 25. Reb1 {[%clk 0:01:28]} 25...
Qc6 {[%clk 0:01:05.7]} 26. Kh1 {[%clk 0:01:23.4]} 26... e5 {[%clk 0:01:05.4]}
27. dxe5 {[%clk 0:01:13.9]} 27... Nxe5 {[%clk 0:00:19.7]} 28. Nd4 {[%clk
0:01:13]} 28... Qc5 {[%clk 0:00:15.4]} 29. Rb5 {[%clk 0:00:57]} 29... Nd3 {[%clk
0:00:15.2]} 30. Rxc5+ {[%clk 0:00:55.9]} 30... bxc5 {[%clk 0:00:14.8]} 31. Ne6
{[%clk 0:00:43.1]} 31... Nxf4 {[%clk 0:00:12.4]} 32. Nxf4 {[%clk 0:00:33.9]}
32... Rxe2 {[%clk 0:00:10.5]} 33. Nxe2 {[%clk 0:00:34.8]} 33... d4+ {[%clk
0:00:11]} 34. Kg1 {[%clk 0:00:31.7]} 34... d3 {[%clk 0:00:11.4]} 35. Nf4 {[%clk
0:00:30.2]} 35... Bxc3 {[%clk 0:00:11.4]} 36. Rc1 {[%clk 0:00:27.9]} 36... Bd4
{[%clk 0:00:09.4]} 37. Ne6 {[%clk 0:00:20.1]} 37... d2 {[%clk 0:00:08.9]} 38.
Rd1 {[%clk 0:00:20]} 38... c3 {[%clk 0:00:09.3]} 0-1

[Event "Early-Titled-Tuesday-Blitz-January-23-2024"]
[Site "Chess.com"]
[Date "2024.01.23"]
[Round "5"]
[White "Akylbek2021"]
[Black "The_Straightforward_Rook"]
[Result "1-0"]
[WhiteElo "2271"]
[BlackElo "2516"]
[TimeControl "180+1"]
[EndTime "8:55:13 PST"]
[Termination "Akylbek2021 won by checkmate"]

1. d4 {[%clk 0:03:00.5]} 1... d5 {[%clk 0:02:58.7]} 2. c4 {[%clk 0:03:00.5]}
2... c6 {[%clk 0:02:56.3]} 3. Nf3 {[%clk 0:02:58]} 3... Nf6 {[%clk 0:02:56.5]}
4. cxd5 {[%clk 0:02:55.5]} 4... cxd5 {[%clk 0:02:56.5]} 5. Nc3 {[%clk
0:02:56.1]} 5... Nc6 {[%clk 0:02:57]} 6. Bf4 {[%clk 0:02:54.6]} 6... Nh5 {[%clk
0:02:56.8]} 7. Bd2 {[%clk 0:02:54.9]} 7... e6 {[%clk 0:02:56.2]} 8. e3 {[%clk
0:02:50.6]} 8... Nf6 {[%clk 0:02:53.4]} 9. Bd3 {[%clk 0:02:50.5]} 9... Bd6
{[%clk 0:02:52.5]} 10. O-O {[%clk 0:02:50.2]} 10... O-O {[%clk 0:02:52.7]} 11.
a3 {[%clk 0:02:50.9]} 11... a6 {[%clk 0:02:52.1]} 12. Rc1 {[%clk 0:02:50.5]}
12... Re8 {[%clk 0:02:51.8]} 13. b4 {[%clk 0:02:43.9]} 13... e5 {[%clk
0:02:49.9]} 14. dxe5 {[%clk 0:02:41.8]} 14... Nxe5 {[%clk 0:02:50.8]} 15. Nxe5
{[%clk 0:02:35.6]} 15... Bxe5 {[%clk 0:02:51.7]} 16. h3 {[%clk 0:02:31.6]} 16...
h6 {[%clk 0:02:42.9]} 17. Ne2 {[%clk 0:02:25]} 17... Ne4 {[%clk 0:02:39.4]} 18.
Bxe4 {[%clk 0:02:16.1]} 18... dxe4 {[%clk 0:02:40.3]} 19. Bc3 {[%clk 0:02:16.8]}
19... Qd3 {[%clk 0:02:23.3]} 20. Bxe5 {[%clk 0:02:10.4]} 20... Rxe5 {[%clk
0:02:21.5]} 21. Nf4 {[%clk 0:02:00.4]} 21... Qb5 {[%clk 0:02:08.8]} 22. a4
{[%clk 0:01:44.6]} 22... Qe8 {[%clk 0:02:05.9]} 23. Nd5 {[%clk 0:01:32.9]} 23...
Qf8 {[%clk 0:01:58.6]} 24. Nb6 {[%clk 0:00:44.9]} 24... Rb8 {[%clk 0:01:56.7]}
25. Qd4 {[%clk 0:00:45.1]} 25... Re8 {[%clk 0:01:49.7]} 26. Rfd1 {[%clk
0:00:35.9]} 26... Bf5 {[%clk 0:01:46.1]} 27. g4 {[%clk 0:00:20.2]} 27... Red8
{[%clk 0:01:45.9]} 28. Qe5 {[%clk 0:00:18.3]} 28... Qxb4 {[%clk 0:01:29.7]} 29.
Nd5 {[%clk 0:00:10.7]} 29... Qxa4 {[%clk 0:01:09.3]} 30. gxf5 {[%clk 0:00:08.7]}
30... Re8 {[%clk 0:01:03.1]} 31. Qf4 {[%clk 0:00:05.8]} 31... Kh8 {[%clk
0:00:56.5]} 32. f6 {[%clk 0:00:06]} 32... Rg8 {[%clk 0:00:54.4]} 33. Kh2 {[%clk
0:00:05.1]} 33... Kh7 {[%clk 0:00:52]} 34. Rg1 {[%clk 0:00:04.5]} 34... g6
{[%clk 0:00:51.3]} 35. Qxe4 {[%clk 0:00:03.7]} 35... Qd7 {[%clk 0:00:47.1]} 36.
Ne7 {[%clk 0:00:03.2]} 36... Rge8 {[%clk 0:00:41.3]} 37. Rcd1 {[%clk 0:00:03.8]}
37... Qc7+ {[%clk 0:00:34.4]} 38. Kh1 {[%clk 0:00:02.4]} 38... Rbd8 {[%clk
0:00:35.2]} 39. Rxd8 {[%clk 0:00:01.7]} 39... Rxd8 {[%clk 0:00:36.1]} 40. Rxg6
{[%clk 0:00:02.1]} 40... Rd1+ {[%clk 0:00:21.5]} 41. Kg2 {[%clk 0:00:02.6]}
41... Kh8 {[%clk 0:00:22.4]} 42. Rxh6# {[%clk 0:00:02.7]} 1-0

[Event "Early-Titled-Tuesday-Blitz-January-23-2024"]
[Site "Chess.com"]
[Date "2024.01.23"]
[Round "5"]
[White "1982lf"]
[Black "hurricane7791"]
[Result "1-0"]
[WhiteElo "2951"]
[BlackElo "2696"]
[TimeControl "180+1"]
[EndTime "8:55:14 PST"]
[Termination "1982lf won by resignation"]

1. c4 {[%clk 0:02:56.9]} 1... c5 {[%clk 0:02:52.9]} 2. Nc3 {[%clk 0:02:56.9]}
2... Nc6 {[%clk 0:02:51.9]} 3. Nf3 {[%clk 0:02:56.7]} 3... g6 {[%clk 0:02:51.8]}
4. e3 {[%clk 0:02:56.3]} 4... Nf6 {[%clk 0:02:52.1]} 5. d4 {[%clk 0:02:56.6]}
5... cxd4 {[%clk 0:02:53]} 6. exd4 {[%clk 0:02:57.5]} 6... d5 {[%clk 0:02:53.7]}
7. cxd5 {[%clk 0:02:57.6]} 7... Nxd5 {[%clk 0:02:54.6]} 8. Qb3 {[%clk
0:02:58.1]} 8... Nxc3 {[%clk 0:02:54]} 9. Bc4 {[%clk 0:02:58.2]} 9... e6 {[%clk
0:02:54.4]} 10. bxc3 {[%clk 0:02:56.2]} 10... Bg7 {[%clk 0:02:53.3]} 11. Ba3
{[%clk 0:02:52.3]} 11... Na5 {[%clk 0:02:53.7]} 12. Bb5+ {[%clk 0:02:50.4]}
12... Bd7 {[%clk 0:02:54.2]} 13. Qb4 {[%clk 0:02:44.1]} 13... Nc6 {[%clk
0:02:50.3]} 14. Qb2 {[%clk 0:02:32.4]} 14... f6 {[%clk 0:02:44.4]} 15. O-O
{[%clk 0:02:29.8]} 15... Kf7 {[%clk 0:02:44.9]} 16. Rfe1 {[%clk 0:02:29.3]}
16... Re8 {[%clk 0:02:44.9]} 17. Rad1 {[%clk 0:02:26.3]} 17... Na5 {[%clk
0:02:42.5]} 18. d5 {[%clk 0:01:52.3]} 18... e5 {[%clk 0:02:41.6]} 19. c4 {[%clk
0:01:38.2]} 19... Rc8 {[%clk 0:02:32.8]} 20. c5 {[%clk 0:01:35.3]} 20... a6
{[%clk 0:02:26.4]} 21. Bf1 {[%clk 0:01:25.9]} 21... Bg4 {[%clk 0:02:20.7]} 22.
Qe2 {[%clk 0:01:10.6]} 22... e4 {[%clk 0:01:53.2]} 23. Ng5+ {[%clk 0:01:08.4]}
23... fxg5 {[%clk 0:01:51.7]} 24. Qxg4 {[%clk 0:01:08.5]} 24... Kg8 {[%clk
0:01:44.5]} 25. Rxe4 {[%clk 0:01:05.5]} 25... Qf6 {[%clk 0:01:41.5]} 26. d6
{[%clk 0:00:58.4]} 26... Rcd8 {[%clk 0:01:37.5]} 27. h3 {[%clk 0:00:51.5]} 27...
Nc6 {[%clk 0:01:36.3]} 28. Rde1 {[%clk 0:00:49.8]} 28... Rxe4 {[%clk 0:01:35]}
29. Qxe4 {[%clk 0:00:50.7]} 29... Qd4 {[%clk 0:01:33.4]} 30. Bc4+ {[%clk
0:00:43.4]} 30... Kh8 {[%clk 0:01:33.2]} 31. Bd5 {[%clk 0:00:26.7]} 31... Qc3
{[%clk 0:01:29.3]} 32. Re3 {[%clk 0:00:22]} 32... Qa1+ {[%clk 0:01:21.7]} 33.
Kh2 {[%clk 0:00:22.1]} 33... Ne5 {[%clk 0:01:18.8]} 34. Re2 {[%clk 0:00:18.5]}
34... g4 {[%clk 0:01:10]} 35. Bb2 {[%clk 0:00:18]} 35... Nf3+ {[%clk 0:01:10.3]}
36. gxf3 {[%clk 0:00:16.7]} 36... Bxb2 {[%clk 0:01:11]} 37. hxg4 {[%clk
0:00:12.5]} 37... Bf6 {[%clk 0:01:11.4]} 38. Kg2 {[%clk 0:00:12.1]} 38... Qc3
{[%clk 0:01:09.8]} 39. Qe3 {[%clk 0:00:11.1]} 39... Qb4 {[%clk 0:01:08.2]} 40.
a3 {[%clk 0:00:09.3]} 40... Qb5 {[%clk 0:01:05.5]} 41. g5 {[%clk 0:00:09.4]}
41... Bg7 {[%clk 0:01:05]} 42. a4 {[%clk 0:00:03.5]} 42... Qxa4 {[%clk
0:00:58.8]} 43. Bxb7 {[%clk 0:00:03.6]} 43... Bd4 {[%clk 0:00:59.4]} 44. Qf4
{[%clk 0:00:02.8]} 44... Qb4 {[%clk 0:00:53.3]} 45. c6 {[%clk 0:00:03]} 45...
Qb5 {[%clk 0:00:43.1]} 46. c7 {[%clk 0:00:03.3]} 1-0

[Event "Early-Titled-Tuesday-Blitz-January-23-2024"]
[Site "Chess.com"]
[Date "2024.01.23"]
[Round "5"]
[White "vasblesk"]
[Black "EvgenyBurmakin"]
[Result "1-0"]
[WhiteElo "2779"]
[BlackElo "2456"]
[TimeControl "180+1"]
[EndTime "8:55:15 PST"]
[Termination "vasblesk won on time"]

1. Nf3 {[%clk 0:02:56.4]} 1... Nf6 {[%clk 0:02:59.5]} 2. g3 {[%clk 0:02:55.6]}
2... g6 {[%clk 0:02:59.7]} 3. Bg2 {[%clk 0:02:55.5]} 3... Bg7 {[%clk 0:03:00.3]}
4. O-O {[%clk 0:02:56.4]} 4... O-O {[%clk 0:03:00.3]} 5. d4 {[%clk 0:02:56.4]}
5... d5 {[%clk 0:02:58.9]} 6. c4 {[%clk 0:02:55.6]} 6... c6 {[%clk 0:02:58.8]}
7. cxd5 {[%clk 0:02:52.3]} 7... cxd5 {[%clk 0:02:59.7]} 8. Ne5 {[%clk
0:02:51.9]} 8... Nc6 {[%clk 0:02:20.7]} 9. Nxc6 {[%clk 0:02:50.5]} 9... bxc6
{[%clk 0:02:21.6]} 10. Nc3 {[%clk 0:02:50.2]} 10... Rb8 {[%clk 0:02:14.4]} 11.
b3 {[%clk 0:02:46.7]} 11... Nd7 {[%clk 0:02:06.1]} 12. Bf4 {[%clk 0:02:44.1]}
12... e5 {[%clk 0:01:56.8]} 13. dxe5 {[%clk 0:02:43]} 13... Nxe5 {[%clk
0:01:53.7]} 14. Rc1 {[%clk 0:02:41.4]} 14... Bf5 {[%clk 0:01:46.2]} 15. Na4
{[%clk 0:02:36.4]} 15... Rc8 {[%clk 0:01:42.3]} 16. Be3 {[%clk 0:02:32.8]} 16...
Rc7 {[%clk 0:01:20.9]} 17. Bd4 {[%clk 0:02:29.9]} 17... Re8 {[%clk 0:01:12.8]}
18. Qd2 {[%clk 0:02:12.7]} 18... h5 {[%clk 0:01:09.1]} 19. e3 {[%clk 0:01:59.6]}
19... h4 {[%clk 0:01:07.2]} 20. Nc5 {[%clk 0:01:15.2]} 20... Qc8 {[%clk
0:00:35.2]} 21. Rce1 {[%clk 0:00:56.5]} 21... Bh3 {[%clk 0:00:31.9]} 22. f4
{[%clk 0:00:55.6]} 22... Bxg2 {[%clk 0:00:26.1]} 23. Kxg2 {[%clk 0:00:50.1]}
23... Ng4 {[%clk 0:00:23.9]} 24. Bxg7 {[%clk 0:00:40.1]} 24... Kxg7 {[%clk
0:00:22.5]} 25. Qd4+ {[%clk 0:00:40.7]} 25... Kg8 {[%clk 0:00:21]} 26. h3 {[%clk
0:00:39.4]} 26... Nh6 {[%clk 0:00:11.7]} 27. e4 {[%clk 0:00:36.7]} 27... hxg3
{[%clk 0:00:07.5]} 28. f5 {[%clk 0:00:22.8]} 28... Rce7 {[%clk 0:00:04.4]} 29.
fxg6 {[%clk 0:00:20.2]} 29... fxg6 {[%clk 0:00:04.5]} 30. Qf6 {[%clk 0:00:20.3]}
30... Rg7 {[%clk 0:00:02.1]} 31. exd5 {[%clk 0:00:07]} 31... Rxe1 {[%clk
0:00:03]} 32. Rxe1 {[%clk 0:00:07.5]} 32... cxd5 {[%clk 0:00:02.6]} 33. Ne6
{[%clk 0:00:06.3]} 33... Qc2+ {[%clk 0:00:02.4]} 34. Kxg3 {[%clk 0:00:05.5]} 1-0

[Event "Early-Titled-Tuesday-Blitz-January-23-2024"]
[Site "Chess.com"]
[Date "2024.01.23"]
[Round "5"]
[White "Zavgorodniy_Sergiy"]
[Black "viviania"]
[Result "1-0"]
[WhiteElo "2632"]
[BlackElo "2887"]
[TimeControl "180+1"]
[EndTime "8:55:15 PST"]
[Termination "Zavgorodniy_Sergiy won on time"]

1. e4 {[%clk 0:03:00.9]} 1... e5 {[%clk 0:02:58.5]} 2. Nf3 {[%clk 0:03:00.4]}
2... Nc6 {[%clk 0:02:58.6]} 3. Be2 {[%clk 0:02:59.8]} 3... Nf6 {[%clk
0:02:57.2]} 4. d3 {[%clk 0:03:00]} 4... Bc5 {[%clk 0:02:54.7]} 5. O-O {[%clk
0:02:54.1]} 5... d6 {[%clk 0:02:54.6]} 6. c3 {[%clk 0:02:54.5]} 6... a5 {[%clk
0:02:51.3]} 7. Be3 {[%clk 0:02:49.3]} 7... O-O {[%clk 0:02:46.5]} 8. d4 {[%clk
0:02:43.8]} 8... Ba7 {[%clk 0:02:43.4]} 9. dxe5 {[%clk 0:02:38.7]} 9... Nxe5
{[%clk 0:02:32.2]} 10. Bxa7 {[%clk 0:02:35.2]} 10... Rxa7 {[%clk 0:02:25.9]} 11.
Nbd2 {[%clk 0:02:27.5]} 11... Re8 {[%clk 0:02:19.6]} 12. Nxe5 {[%clk 0:02:21.7]}
12... dxe5 {[%clk 0:02:19.1]} 13. Qc2 {[%clk 0:02:21.2]} 13... Qe7 {[%clk
0:02:17.8]} 14. Nc4 {[%clk 0:02:16.7]} 14... a4 {[%clk 0:02:09.2]} 15. Rad1
{[%clk 0:02:10.9]} 15... b5 {[%clk 0:02:07.9]} 16. Ne3 {[%clk 0:02:04.7]} 16...
c6 {[%clk 0:02:07.9]} 17. a3 {[%clk 0:02:00.3]} 17... Be6 {[%clk 0:01:59.6]} 18.
Nf5 {[%clk 0:01:33.7]} 18... Qc5 {[%clk 0:01:43.1]} 19. Qd3 {[%clk 0:01:31.9]}
19... Rd7 {[%clk 0:01:35.8]} 20. Qg3 {[%clk 0:01:27.4]} 20... Bxf5 {[%clk
0:01:35.3]} 21. exf5 {[%clk 0:01:28.3]} 21... Red8 {[%clk 0:01:18.8]} 22. h3
{[%clk 0:01:23.7]} 22... Ne4 {[%clk 0:01:09.2]} 23. Rxd7 {[%clk 0:01:10.2]}
23... Rxd7 {[%clk 0:01:08]} 24. Qh4 {[%clk 0:01:10.8]} 24... Nf6 {[%clk
0:00:58.3]} 25. Bf3 {[%clk 0:00:55.1]} 25... Rd2 {[%clk 0:00:38.5]} 26. Re1
{[%clk 0:00:44.9]} 26... h6 {[%clk 0:00:11]} 27. Qg3 {[%clk 0:00:44]} 27... e4
{[%clk 0:00:11.2]} 28. Bxe4 {[%clk 0:00:40.9]} 28... Rxb2 {[%clk 0:00:11.4]} 29.
Bf3 {[%clk 0:00:24.4]} 29... Rc2 {[%clk 0:00:10.9]} 30. Rd1 {[%clk 0:00:23.8]}
30... Kh7 {[%clk 0:00:07.1]} 31. Rd8 {[%clk 0:00:20.7]} 31... Qxf5 {[%clk
0:00:05]} 32. Kh2 {[%clk 0:00:12.9]} 32... Ne4 {[%clk 0:00:03.5]} 33. Qh4 {[%clk
0:00:11.5]} 33... Qe5+ {[%clk 0:00:01.6]} 34. Kg1 {[%clk 0:00:10.8]} 1-0

[Event "Early-Titled-Tuesday-Blitz-January-23-2024"]
[Site "Chess.com"]
[Date "2024.01.23"]
[Round "5"]
[White "Gennady_Kozlov"]
[Black "Predator0608"]
[Result "0-1"]
[WhiteElo "2628"]
[BlackElo "2513"]
[TimeControl "180+1"]
[EndTime "8:55:16 PST"]
[Termination "Predator0608 won by resignation"]

1. b3 {[%clk 0:03:00.9]} 1... b6 {[%clk 0:02:59.8]} 2. Bb2 {[%clk 0:03:00.6]}
2... Bb7 {[%clk 0:03:00.2]} 3. e3 {[%clk 0:03:01]} 3... Nf6 {[%clk 0:02:59.9]}
4. f4 {[%clk 0:03:01.2]} 4... e6 {[%clk 0:02:57.9]} 5. Nf3 {[%clk 0:03:01.5]}
5... Ne4 {[%clk 0:02:57.4]} 6. Be2 {[%clk 0:03:01.4]} 6... f5 {[%clk 0:02:57]}
7. O-O {[%clk 0:03:01.7]} 7... d5 {[%clk 0:02:51.7]} 8. Ne5 {[%clk 0:03:00.5]}
8... Rg8 {[%clk 0:02:39.2]} 9. d3 {[%clk 0:02:59.3]} 9... Nf6 {[%clk 0:02:35.4]}
10. Bf3 {[%clk 0:02:57]} 10... Bc5 {[%clk 0:02:27.1]} 11. Qe2 {[%clk 0:02:55.8]}
11... Nbd7 {[%clk 0:02:24.5]} 12. Nd2 {[%clk 0:02:54.1]} 12... Qe7 {[%clk
0:02:16.7]} 13. Nxd7 {[%clk 0:02:33.6]} 13... Nxd7 {[%clk 0:02:14.5]} 14. a3
{[%clk 0:02:31.8]} 14... Bd6 {[%clk 0:01:51.9]} 15. b4 {[%clk 0:02:30.5]} 15...
e5 {[%clk 0:01:51.6]} 16. fxe5 {[%clk 0:02:28.6]} 16... Bxe5 {[%clk 0:01:52.2]}
17. Bxe5 {[%clk 0:02:27.3]} 17... Nxe5 {[%clk 0:01:52.1]} 18. c4 {[%clk
0:02:26.3]} 18... O-O-O {[%clk 0:01:46.8]} 19. d4 {[%clk 0:02:24.7]} 19... Nxc4
{[%clk 0:01:30.5]} 20. Nxc4 {[%clk 0:01:55.7]} 20... dxc4 {[%clk 0:01:31.4]} 21.
Bxb7+ {[%clk 0:01:53.5]} 21... Kxb7 {[%clk 0:01:32.3]} 22. Rae1 {[%clk 0:01:51]}
22... Qe6 {[%clk 0:01:13.4]} 23. Qf3+ {[%clk 0:01:48.9]} 23... Rd5 {[%clk
0:01:11.8]} 24. e4 {[%clk 0:01:46.7]} 24... Rxd4 {[%clk 0:01:12.1]} 25. exf5+
{[%clk 0:01:45.4]} 25... Qc6 {[%clk 0:01:12.6]} 26. Qxc6+ {[%clk 0:01:41.6]}
26... Kxc6 {[%clk 0:01:13.5]} 27. f6 {[%clk 0:01:40.4]} 27... gxf6 {[%clk
0:01:11.4]} 28. Rxf6+ {[%clk 0:01:41.3]} 28... Kb5 {[%clk 0:01:09.7]} 29. Rf7
{[%clk 0:01:39.7]} 29... Rd2 {[%clk 0:01:03.3]} 30. g3 {[%clk 0:01:38]} 30...
Ka4 {[%clk 0:00:37.6]} 31. Rxc7 {[%clk 0:01:34.2]} 31... Kb3 {[%clk 0:00:38]}
32. Rc1 {[%clk 0:01:27.4]} 32... Rg4 {[%clk 0:00:35.5]} 33. b5 {[%clk
0:01:23.4]} 33... Re4 {[%clk 0:00:34.9]} 34. Rxh7 {[%clk 0:01:18.3]} 34... Kb2
{[%clk 0:00:31]} 35. Rf1 {[%clk 0:01:17.6]} 35... c3 {[%clk 0:00:28.8]} 36. h4
{[%clk 0:01:17.3]} 36... Ree2 {[%clk 0:00:28.2]} 37. Rf3 {[%clk 0:01:12.6]}
37... c2 {[%clk 0:00:24.5]} 38. Rc7 {[%clk 0:01:09.3]} 38... Rd1+ {[%clk
0:00:18.8]} 39. Rf1 {[%clk 0:01:08.4]} 39... Rdd2 {[%clk 0:00:19.7]} 40. Rf4
{[%clk 0:01:06.5]} 40... Rg2+ {[%clk 0:00:17.2]} 41. Kf1 {[%clk 0:01:05.6]}
41... Rh2 {[%clk 0:00:16.8]} 42. Kg1 {[%clk 0:01:04.2]} 42... Rhg2+ {[%clk
0:00:11.7]} 43. Kf1 {[%clk 0:01:03.9]} 43... Rxg3 {[%clk 0:00:12.6]} 44. Rb4+
{[%clk 0:01:00]} 44... Kc1 {[%clk 0:00:12.6]} 45. h5 {[%clk 0:00:58]} 45... Rh3
{[%clk 0:00:12.8]} 46. Kg1 {[%clk 0:00:57.8]} 46... Rxh5 {[%clk 0:00:13.4]} 47.
Rxa7 {[%clk 0:00:57.3]} 47... Rg5+ {[%clk 0:00:13.7]} 48. Kf1 {[%clk 0:00:55.8]}
48... Rf5+ {[%clk 0:00:14.1]} 49. Ke1 {[%clk 0:00:55.1]} 49... Rh5 {[%clk
0:00:14.2]} 50. Rf4 {[%clk 0:00:53.4]} 50... Rh1+ {[%clk 0:00:14.5]} 51. Rf1
{[%clk 0:00:53.1]} 51... Rd1+ {[%clk 0:00:15.4]} 52. Ke2 {[%clk 0:00:53.9]}
52... Rhxf1 {[%clk 0:00:15.7]} 53. Rc7 {[%clk 0:00:53.2]} 53... Rfe1+ {[%clk
0:00:15.7]} 0-1

[Event "Early-Titled-Tuesday-Blitz-January-23-2024"]
[Site "Chess.com"]
[Date "2024.01.23"]
[Round "5"]
[White "ChessSwole"]
[Black "ViktoriyaTarasova"]
[Result "1-0"]
[WhiteElo "2626"]
[BlackElo "2314"]
[TimeControl "180+1"]
[EndTime "8:55:17 PST"]
[Termination "ChessSwole won by resignation"]

1. e4 {[%clk 0:03:00.9]} 1... e5 {[%clk 0:02:58.7]} 2. Nf3 {[%clk 0:02:59.9]}
2... Nc6 {[%clk 0:02:58.4]} 3. Bc4 {[%clk 0:03:00.5]} 3... Bc5 {[%clk
0:02:57.1]} 4. c3 {[%clk 0:03:00.1]} 4... Nf6 {[%clk 0:02:56.3]} 5. d3 {[%clk
0:03:00.6]} 5... d6 {[%clk 0:02:54.5]} 6. O-O {[%clk 0:02:57.5]} 6... h6 {[%clk
0:02:54.1]} 7. Re1 {[%clk 0:02:54]} 7... a5 {[%clk 0:02:48]} 8. Bb5 {[%clk
0:02:52.4]} 8... O-O {[%clk 0:02:47.1]} 9. h3 {[%clk 0:02:50.6]} 9... Ba7 {[%clk
0:02:39.4]} 10. Na3 {[%clk 0:02:43.2]} 10... Ne7 {[%clk 0:02:30.1]} 11. d4
{[%clk 0:02:41.1]} 11... Ng6 {[%clk 0:02:24.8]} 12. Bd3 {[%clk 0:02:32.6]} 12...
Re8 {[%clk 0:02:23]} 13. Nc2 {[%clk 0:02:19.7]} 13... c6 {[%clk 0:02:18.6]} 14.
a4 {[%clk 0:02:17.5]} 14... Be6 {[%clk 0:02:11.9]} 15. Be3 {[%clk 0:02:15]}
15... Qc7 {[%clk 0:02:02.7]} 16. dxe5 {[%clk 0:02:08.3]} 16... dxe5 {[%clk
0:02:01.2]} 17. Bxa7 {[%clk 0:02:08]} 17... Rxa7 {[%clk 0:02:01.8]} 18. Ne3
{[%clk 0:02:04.5]} 18... Raa8 {[%clk 0:02:00.6]} 19. Qc2 {[%clk 0:02:01]} 19...
Rad8 {[%clk 0:01:59.9]} 20. Rad1 {[%clk 0:01:54.4]} 20... Nf4 {[%clk 0:01:57.3]}
21. Bc4 {[%clk 0:01:54]} 21... Rxd1 {[%clk 0:01:12.1]} 22. Rxd1 {[%clk
0:01:53.1]} 22... N6h5 {[%clk 0:01:12.8]} 23. Kh2 {[%clk 0:01:48.1]} 23... f6
{[%clk 0:00:56.8]} 24. g3 {[%clk 0:01:42]} 24... Ng6 {[%clk 0:00:46.9]} 25.
Bxe6+ {[%clk 0:01:35.3]} 25... Rxe6 {[%clk 0:00:46.9]} 26. Qb3 {[%clk 0:01:36]}
26... Nf8 {[%clk 0:00:40.5]} 27. Nh4 {[%clk 0:01:17.4]} 27... Kh7 {[%clk
0:00:36.3]} 28. Nhf5 {[%clk 0:01:16.9]} 28... g6 {[%clk 0:00:33.7]} 29. Nh4
{[%clk 0:01:15.3]} 29... Kg7 {[%clk 0:00:18.5]} 30. Nc4 {[%clk 0:01:02.2]} 30...
Re7 {[%clk 0:00:14.3]} 31. Ng2 {[%clk 0:00:45.8]} 31... Ne6 {[%clk 0:00:13.6]}
32. Nge3 {[%clk 0:00:41.6]} 32... Nc5 {[%clk 0:00:13.7]} 33. Qc2 {[%clk
0:00:41.9]} 33... b6 {[%clk 0:00:14]} 34. b4 {[%clk 0:00:38.1]} 34... axb4
{[%clk 0:00:13.1]} 35. cxb4 {[%clk 0:00:39]} 35... Ne6 {[%clk 0:00:13.3]} 36. a5
{[%clk 0:00:35.9]} 36... bxa5 {[%clk 0:00:08.7]} 37. Nxa5 {[%clk 0:00:32.8]}
37... Nd4 {[%clk 0:00:08.7]} 38. Qc5 {[%clk 0:00:31.8]} 38... Rd7 {[%clk
0:00:06.3]} 39. Kg2 {[%clk 0:00:28.2]} 39... Kf7 {[%clk 0:00:06.4]} 40. Rc1
{[%clk 0:00:21.9]} 40... Rd6 {[%clk 0:00:02.8]} 41. Nd5 {[%clk 0:00:19.7]} 41...
Re6 {[%clk 0:00:03.3]} 42. Nxc7 {[%clk 0:00:20]} 1-0